bitfinex/quotes_SOLUSD_20260224
["timestamp","ask_amount","ask_price","bid_price","bid_amount"]
[1771941115613,1.05934215,76.699,76.672,1.04399759]
[1771941116220,0.1,76.71,76.69,5.0326462]
[1771941116552,0.1,76.73,76.7,5.0326462]
[1771941116842,0.1,76.73,76.701,13.03763966]
[1771941117224,0.1,76.73,76.7,4.8326462]
[1771941117437,1.05934215,76.728,76.7,5.0326462]
[1771941118230,0.1,76.73,76.71,5.0326462]
[1771941118429,0.1,76.73,76.721,1.04399759]
[1771941119534,0.1,76.73,76.722,1.04399759]
[1771941120640,13.0301007,76.746,76.723,1.04399759]
[1771941122042,13.02999504,76.746,76.725,1.04399759]
[1771941122539,1.05934215,76.745,76.711,1.04399759]
[1771941122733,1.05934215,76.745,76.721,1.04399759]
[1771941122944,1.05934215,76.743,76.721,1.04399759]
[1771941125538,1.05934215,76.743,76.722,14.07806865]
[1771941125732,1.05934215,76.743,76.723,1.04399759]
[1771941126728,13.0306742,76.742,76.723,1.04399759]
[1771941126930,14.09001635,76.742,76.723,1.04399759]
[1771941127129,1.05934215,76.741,76.723,1.04399759]
[1771941127432,1.05934215,76.741,76.717,1.04399759]
[1771941128938,1.05934215,76.741,76.71,37.62292126]
[1771941128939,1.05934215,76.741,76.721,1.04399759]
[1771941130637,0.78498983,76.741,76.721,1.04399759]
[1771941130840,13.02995197,76.747,76.723,1.04399759]
[1771941131727,13.02778827,76.759,76.731,1.04399759]
[1771941132745,14.08713042,76.759,76.733,1.04399759]
[1771941132946,1.05934215,76.758,76.733,1.04399759]
[1771941133331,1.05934215,76.758,76.728,14.07694905]
[1771941133537,1.05934215,76.758,76.729,1.04399759]
[1771941134755,13.02812772,76.757,76.731,1.04399759]
[1771941135051,1.05934215,76.759,76.73,18.0653583]
[1771941135239,1.05934215,76.759,76.731,1.04399759]
[1771941135549,1.05934215,76.758,76.731,1.04399759]
[1771941135728,1.05934215,76.749,76.71,5.0326462]
[1771941135933,1.05934215,76.749,76.713,13.03560022]
[1771941136440,1.05934215,76.749,76.713,14.07959781]
[1771941136651,1.05934215,76.749,76.714,1.04399759]
[1771941136953,1.05934215,76.747,76.715,14.07925796]
[1771941139258,45.60498266,76.746,76.71,5.0326462]
[1771941139444,1.05934215,76.739,76.71,1.04399759]
[1771941139754,1.05934215,76.739,76.711,1.04399759]
[1771941140730,1.05934215,76.739,76.7,5.0326462]
[1771941141051,1.05934215,76.729,76.7,5.0326462]
[1771941141255,13.03305181,76.728,76.701,1.04399759]
[1771941141435,1.05934215,76.727,76.702,13.03746968]
[1771941141635,1.05934215,76.727,76.703,1.04399759]
[1771941142462,5.0326462,76.75,76.711,1.04399759]
[1771941142758,1.05934215,76.749,76.711,1.04399759]
[1771941143636,1.05934215,76.747,76.711,1.04399759]
[1771941143840,1.05934215,76.747,76.713,1.04399759]
[1771941146059,1.07236693,76.745,76.713,1.04399759]
[1771941146960,1.07236693,76.739,76.713,1.04399759]
[1771941148457,1.07236693,76.739,76.721,1.10330383]
[1771941149450,13.03033461,76.744,76.722,1.10330383]
[1771941149858,1.07236693,76.743,76.722,1.10330383]
[1771941150964,5.1326462,76.76,76.731,1.10330383]
[1771941150965,1.07236693,76.755,76.731,1.10330383]
[1771941151356,1.07236693,76.753,76.723,1.10330383]
[1771941153638,1.07236693,76.751,76.725,1.10330383]
[1771941155948,1.07236693,76.749,76.726,14.13669537]
[1771941156460,1.07236693,76.749,76.727,1.10330383]
[1771941156845,0.2,76.743,76.727,1.10330383]
[1771941157648,0.2,76.733,76.728,13.03305181]
[1771941158051,0.2,76.733,76.728,14.13635564]
[1771941164274,0.2,76.743,76.723,1.10330383]
[1771941165466,1.27236693,76.743,76.723,1.10330383]
[1771941166056,1.27236693,76.743,76.724,13.03373129]
[1771941166449,1.07236693,76.743,76.724,13.03373129]
[1771941166951,1.07236693,76.743,76.724,14.13703512]
[1771941167268,1.07236693,76.743,76.726,13.03339154]
[1771941167767,1.07236693,76.754,76.727,1.10330383]
[1771941169165,1.07236693,76.752,76.727,1.10330383]
[1771941169354,1.07236693,76.752,76.728,13.03305181]
[1771941169555,1.07236693,76.752,76.729,1.10330383]
[1771941171962,1.07236693,76.752,76.73,13.0327121]
[1771941172151,1.07236693,76.752,76.731,1.10330383]
[1771941172558,1.07236693,76.75,76.731,1.10330383]
[1771941174064,1.07236693,76.748,76.731,1.10330383]
[1771941175268,5.12231501,76.76,76.733,1.15347196]
[1771941175269,0.1,76.76,76.733,1.15347196]
[1771941175472,0.1,76.76,76.75,5.02231501]
[1771941175672,0.1,76.78,76.751,1.15347196]
[1771941175854,0.1,76.78,76.761,1.15347196]
[1771941178770,1.07113712,76.795,76.771,1.15347196]
[1771941179270,13.02185066,76.794,76.771,1.15347196]
[1771941179866,1.07113712,76.795,76.771,1.15347196]
[1771941180572,13.02171994,76.795,76.771,1.15347196]
[1771941180756,1.07113712,76.779,76.73,5.02231501]
[1771941180962,1.07113712,76.759,76.722,1.15347196]
[1771941181577,1.07113712,76.749,76.722,1.15347196]
[1771941183378,1.07113712,76.749,76.724,1.15347196]
[1771941185681,169.28626306,76.793,76.7,5.02231501]
[1771941185682,1.07113712,76.739,76.7,5.02231501]
[1771941185877,1.07113712,76.739,76.703,3.69383402]
[1771941187386,1.07113712,76.739,76.704,1.15347196]
[1771941189881,1.07113712,76.745,76.711,1.15347196]
[1771941191976,1.07113712,76.745,76.712,45.62519553]
[1771941192174,1.07113712,76.745,76.713,1.15347196]
[1771941192661,1.07113712,76.752,76.721,1.15347196]
[1771941192865,1.07113712,76.751,76.721,1.15347196]
[1771941195992,1.07113712,76.751,76.722,13.03407106]
[1771941196183,1.07113712,76.751,76.723,1.15347196]
[1771941198680,1.07113712,76.751,76.725,1.15347196]
[1771941199695,1.07113712,76.749,76.724,13.03373129]
[1771941199881,1.07113712,76.749,76.703,107.19383402]
[1771941199882,1.07113712,76.739,76.703,3.69383402]
[1771941200477,5.02231501,76.72,76.68,5.02231501]
[1771941200683,1.07113712,76.719,76.68,5.02231501]
[1771941200882,1.07113712,76.719,76.681,45.64364053]
[1771941201094,1.07113712,76.719,76.684,3.69383402]
[1771941201989,1.07113712,76.719,76.685,0.85108853]
[1771941203589,1.07113712,76.719,76.689,3.69383402]
[1771941203977,1.07113712,76.719,76.689,4.54904637]
[1771941205185,1.07113712,76.719,76.69,13.03950971]
[1771941205381,1.07113712,76.719,76.691,0.85920176]
[1771941205692,1.12460796,76.726,76.691,0.85920176]
[1771941208487,1.12460796,76.726,76.693,0.8630602]
[1771941209098,1.12460796,76.724,76.692,45.63709382]
[1771941209401,1.12460796,76.719,76.688,13.03977391]
[1771941210597,1.12460796,76.719,76.689,0.86558027]
[1771941210801,1.12460796,76.728,76.691,0.86558027]
[1771941212304,1.12460796,76.728,76.683,3.69383402]
[1771941212305,1.12460796,76.728,76.693,0.86801453]
[1771941216585,1.12460796,76.728,76.695,0.87275408]
[1771941218585,1.12460796,76.728,76.697,0.87506243]
[1771941221810,1.12460796,76.728,76.699,0.87840738]
[1771941222512,1.12460796,76.745,76.702,0.87949766]
[1771941222920,1.12460796,76.759,76.702,0.87949766]
[1771941223713,1.12460796,76.757,76.707,0.88057254]
[1771941224210,1.12460796,76.749,76.707,0.88057254]
[1771941225608,3.69383402,76.791,76.706,3.69383402]
[1771941225609,0.1,76.8,76.71,1.12341955]
[1771941225816,0.1,76.8,76.712,1.12341955]
[1771941225817,5.02575668,76.79,76.712,1.12341955]
[1771941226001,5.02575668,76.78,76.712,1.12341955]
[1771941226194,5.02575668,76.77,76.712,1.12341955]
[1771941226935,5.02575668,76.76,76.712,1.12341955]
[1771941227213,5.02575668,76.75,76.712,1.12341955]
[1771941227715,1.12460796,76.749,76.714,1.12341955]
[1771941228116,1.12460796,76.748,76.714,1.12341955]
[1771941230625,1.12460796,76.739,76.707,4.81725357]
[1771941230803,1.12460796,76.739,76.707,1.12341955]
[1771941233323,1.12460796,76.739,76.708,13.03644991]
[1771941233808,1.12460796,76.737,76.708,13.03644991]
[1771941234005,1.12460796,76.729,76.697,1.12341955]
[1771941235624,1.12460796,76.729,76.698,13.03814962]
[1771941236120,1.12460796,76.729,76.698,14.21759048]
[1771941236319,13.03305181,76.728,76.698,14.21759048]
[1771941236522,1.10702855,76.727,76.698,14.21759048]
[1771941239428,1.10702855,76.727,76.699,1.17944086]
[1771941240721,1.10702855,76.719,76.687,13.04001982]
[1771941240925,1.10702855,76.719,76.656,52.18051342]
[1771941240926,5.02456761,76.7,76.677,13.04172046]
[1771941241225,1.10702855,76.699,76.677,13.04172046]
[1771941241530,1.10702855,76.724,76.681,1.17944086]
[1771941242227,1.10702855,76.73,76.681,1.17944086]
[1771941242529,1.10702855,76.729,76.681,1.17944086]
[1771941243712,1.10702855,76.719,76.686,1.17944086]
[1771941243944,1.10702855,76.719,76.682,46.82248615]
[1771941244239,1.10702855,76.719,76.683,1.17944086]
[1771941245931,1.10702855,76.717,76.685,1.17944086]
[1771941249344,1.10702855,76.715,76.687,1.17944086]
[1771941249517,5.02456761,76.73,76.687,1.17944086]
[1771941249715,1.10702855,76.727,76.687,1.17944086]
[1771941252642,13.03339154,76.726,76.688,45.63947423]
[1771941253141,1.10702855,76.725,76.69,1.17944086]
[1771941254230,1.10702855,76.719,76.688,45.63947423]
[1771941254726,1.10702855,76.719,76.688,1.17944086]
[1771941255444,1.10702855,76.717,76.688,1.17944086]
[1771941255641,1.10702855,76.717,76.683,1.17944086]
[1771941256144,1.10702855,76.709,76.675,1.17944086]
[1771941256928,1.10702855,76.707,76.676,13.04189055]
[1771941257341,1.10702855,76.707,76.676,14.22133141]
[1771941257643,1.10702855,76.707,76.677,1.17944086]
[1771941259946,1.10702855,76.707,76.679,1.17944086]
[1771941260645,13.03288196,76.729,76.679,1.17944086]
[1771941260850,1.10702855,76.728,76.679,1.17944086]
[1771941261949,1.10702855,76.726,76.681,1.17944086]
[1771941264755,1.1421927,76.724,76.683,1.17077938]
[1771941267327,1.14277607,76.722,76.685,1.11522504]
[1771941269655,1.14277607,76.72,76.687,1.11522504]
[1771941271659,1.14277607,76.72,76.689,1.11522504]
[1771941272653,1.14277607,76.72,76.676,1.11522504]
[1771941272654,1.14277607,76.718,76.676,1.11522504]
[1771941272838,1.14277607,76.718,76.678,1.11522504]
[1771941274058,13.03492055,76.717,76.679,45.64483103]
[1771941274259,1.14277607,76.716,76.68,1.11522504]
[1771941275456,1.14277607,76.731,76.683,1.11522504]
[1771941276235,1.14277607,76.731,76.687,3.69383402]
[1771941276454,1.14277607,76.731,76.688,1.11522504]
[1771941276654,1.14277607,76.73,76.688,1.11522504]
[1771941279861,5.02456761,76.75,76.69,1.11522504]
[1771941279862,1.14277607,76.728,76.69,1.11522504]
[1771941280245,1.14277607,76.719,76.685,13.0401981]
[1771941280568,1.14277607,76.709,76.685,13.0401981]
[1771941281344,1.14277607,76.709,76.674,13.04223074]
[1771941281549,5.02456761,76.7,76.674,13.04223074]
[1771941281750,1.14277607,76.699,76.674,13.04223074]
[1771941281945,1.14277607,76.699,76.668,1.11522504]
[1771941283665,1.14277607,76.712,76.671,1.11522504]
[1771941284071,1.14277607,76.712,76.676,1.11522504]
[1771941285148,14.17856144,76.712,76.676,1.11522504]
[1771941285344,1.14277607,76.72,76.676,1.11522504]
[1771941288566,1.14277607,76.718,76.681,1.11522504]
[1771941288769,13.03458074,76.719,76.669,13.04308129]
[1771941288770,1.14277607,76.709,76.669,13.04308129]
[1771941288953,1.14277607,76.709,76.669,45.65068233]
[1771941289149,1.14277607,76.709,76.67,1.11522504]
[1771941290864,1.14277607,76.707,76.672,1.11522504]
[1771941291453,1.14277607,76.717,76.672,1.11522504]
[1771941291765,1.14277607,76.717,76.675,1.11522504]
[1771941292167,1.14277607,76.709,76.668,13.04323679]
[1771941293067,1.14277607,76.707,76.655,1.11522504]
[1771941294977,1.22043233,76.699,76.659,3.69383402]
[1771941295154,1.22043233,76.699,76.66,1.22499033]
[1771941298057,13.03678982,76.706,76.65,0.2]
[1771941298058,1.22043233,76.679,76.651,13.04614421]
[1771941298374,1.22043233,76.679,76.651,14.27113454]
[1771941298574,1.22043233,76.679,76.652,1.22499033]
[1771941300300,13.04155037,76.678,76.651,13.04614421]
[1771941300583,1.22043233,76.677,76.651,13.04614421]
[1771941301359,1.22043233,76.705,76.655,1.22499033]
[1771941302481,1.22043233,76.705,76.656,45.65852639]
[1771941302680,1.22043233,76.705,76.66,1.22499033]
[1771941303582,5.03056012,76.72,76.66,1.22499033]
[1771941303889,5.03056012,76.73,76.66,1.22499033]
[1771941304069,13.03203273,76.734,76.66,1.22499033]
[1771941304672,13.03118362,76.739,76.665,1.22499033]
[1771941304874,5.03056012,76.73,76.665,1.22499033]
[1771941305671,1.22043233,76.729,76.665,1.22499033]
[1771941306678,1.22043233,76.729,76.669,3.69383402]
[1771941306887,1.22043233,76.729,76.67,1.22499033]
[1771941307273,1.22043233,76.727,76.67,1.22499033]
[1771941308886,1.22043233,76.727,76.674,3.69383402]
[1771941309203,1.22043233,76.727,76.675,1.22499033]
[1771941310674,1.22043233,76.727,76.681,1.22499033]
[1771941310876,1.22043233,76.727,76.686,1.22499033]
[1771941311076,32.57795905,76.739,76.686,1.22499033]
[1771941311077,13.03135343,76.738,76.686,1.22499033]
[1771941311596,1.22043233,76.737,76.686,1.22499033]
[1771941312591,13.03135343,76.738,76.691,1.22499033]
[1771941312592,1.22043233,76.735,76.691,1.22499033]
[1771941315398,1.22043233,76.739,76.696,1.22499033]
[1771941317698,1.22043233,76.737,76.701,1.22499033]
[1771941318589,1.22043233,76.743,76.701,1.22499033]
[1771941319603,1.22043233,76.743,76.703,1.22499033]
[1771941319904,1.22043233,76.741,76.703,1.22499033]
[1771941320900,1.22043233,76.747,76.706,1.22499033]
[1771941321084,1.22043233,76.759,76.706,1.22499033]
[1771941321286,1.22043233,76.759,76.707,1.22499033]
[1771941322795,1.22043233,76.757,76.709,1.22499033]
[1771941323299,1.22043233,76.749,76.709,1.22499033]
[1771941323485,1.22043233,76.739,76.708,13.03644991]
[1771941323690,1.22043233,76.739,76.709,1.22499033]
[1771941326096,1.17119195,76.745,76.711,1.22624178]
[1771941326405,1.17119195,76.756,76.711,1.22624178]
[1771941327784,1.17119195,76.756,76.714,1.22624178]
[1771941328282,1.17119195,76.762,76.719,1.22624178]
[1771941330591,1.17119195,76.774,76.724,1.22624178]
[1771941330792,0.1,76.8,76.724,1.22624178]
[1771941330793,5.13056012,76.8,76.724,1.22624178]
[1771941330995,5.03056012,76.79,76.724,1.22624178]
[1771941331397,5.03056012,76.77,76.724,1.22624178]
[1771941332820,0.49366847,76.767,76.726,1.22624178]
[1771941333608,0.49521644,76.773,76.729,1.22624178]
[1771941334115,0.49521644,76.779,76.729,1.22624178]
[1771941335008,0.49677234,76.777,76.731,1.22624178]
[1771941337015,0.49677234,76.777,76.719,52.13773956]
[1771941337016,0.49982027,76.775,76.733,1.22624178]
[1771941337492,0.50130937,76.769,76.733,1.22624178]
[1771941338898,0.50277983,76.775,76.733,1.22624178]
[1771941339819,13.52838935,76.781,76.735,1.22624178]
[1771941340113,0.5042353,76.78,76.738,1.22624178]
[1771941340305,0.50566748,76.779,76.738,1.22624178]
[1771941342207,0.50848647,76.777,76.74,1.22624178]
[1771941342412,0.50848647,76.789,76.74,1.22624178]
[1771941342799,0.50848647,76.779,76.74,1.22624178]
[1771941343821,0.50987332,76.797,76.743,1.22624178]
[1771941343999,0.50987332,76.795,76.743,1.22624178]
[1771941344201,0.51123573,76.793,76.748,1.22624178]
[1771941345401,0.51257638,76.791,76.75,1.22624178]
[1771941348522,0.51651764,76.789,76.752,1.22624178]
[1771941351627,0.52032973,76.793,76.754,1.22624178]
[1771941352499,13.02189524,76.794,76.754,1.22624178]
[1771941352500,0.52155861,76.789,76.754,1.22624178]
[1771941352720,0.52155861,76.789,76.753,13.02880669]
[1771941353308,0.52155861,76.789,76.754,1.22624178]
[1771941354608,0.524007,76.787,76.756,1.22624178]
[1771941355619,0.524007,76.787,76.752,13.02897151]
[1771941355830,45.58003854,76.788,76.736,1.22864736]
[1771941355831,0.52447764,76.769,76.736,1.22864736]
[1771941356126,0.52447764,76.769,76.73,1.22864736]
[1771941357326,0.52492105,76.767,76.732,1.22864736]
[1771941359831,0.52536881,76.772,76.734,1.22864736]
[1771941360127,13.02555085,76.773,76.734,1.22864736]
[1771941360920,13.02473396,76.777,76.736,1.22864736]
[1771941361127,13.02405543,76.781,76.739,1.22864736]
[1771941363124,0.52602889,76.783,76.74,45.60854834]
[1771941363326,0.52602889,76.783,76.741,1.22864736]
[1771941365723,13.55051533,76.782,76.743,1.22864736]
[1771941365918,0.52662953,76.781,76.743,1.22864736]
[1771941367322,0.52703356,76.787,76.745,1.22864736]
[1771941367632,3.69383402,76.82,76.744,45.60617115]
[1771941367633,13.54923497,76.792,76.748,1.22864736]
[1771941368241,0.52721735,76.791,76.748,1.22864736]
[1771941370041,0.1,76.8,76.749,45.60320003]
[1771941370350,0.52760208,76.799,76.751,1.22864736]
[1771941372226,0.52760208,76.799,76.742,3.69383402]
[1771941372227,0.52799397,76.797,76.753,1.22864736]
[1771941374340,0.52834576,76.795,76.755,1.22864736]
[1771941376322,0.52834576,76.795,76.757,1.22864736]
[1771941377067,0.52871684,76.794,76.757,1.22864736]
[1771941377638,45.57595615,76.795,76.757,1.22864736]
[1771941377639,0.52889815,76.795,76.757,1.22864736]
[1771941377834,13.02115777,76.799,76.757,1.22864736]
[1771941378037,13.55005592,76.799,76.757,1.22864736]
[1771941378329,0.52889815,76.798,76.757,1.22864736]
[1771941379350,13.02115777,76.799,76.76,1.22864736]
[1771941379351,0.52921101,76.799,76.76,1.22864736]
[1771941381356,0.5295273,76.797,76.762,1.22864736]
[1771941383738,13.02151153,76.796,76.764,1.22864736]
[1771941384451,45.57529037,76.796,76.764,1.22864736]
[1771941384856,46.10549581,76.796,76.764,1.22864736]
[1771941385760,46.10549581,76.796,76.765,13.02677001]
[1771941385971,46.10549581,76.796,76.766,1.23336731]
[1771941386341,0.1,76.8,76.766,1.23336731]
[1771941387543,0.1,76.8,76.768,1.23336731]
[1771941388363,5.02062921,76.82,76.768,1.23336731]
[1771941388364,13.01812122,76.816,76.768,1.23336731]
[1771941388567,0.63099026,76.815,76.768,1.23336731]
[1771941390066,0.63121286,76.813,76.77,1.23336731]
[1771941392044,0.63166109,76.811,76.772,1.23336731]
[1771941393144,0.63187542,76.817,76.774,1.23336731]
[1771941395953,0.63187542,76.817,76.773,45.58894401]
[1771941395954,0.63249931,76.815,76.776,1.23336731]
[1771941398556,0.63310128,76.813,76.778,1.23336731]
[1771941399852,13.01879914,76.812,76.78,1.23336731]
[1771941400165,0.6332987,76.811,76.78,1.23336731]
[1771941401958,32.54536093,76.816,76.782,1.23336731]
[1771941402553,13.01761283,76.819,76.782,1.23336731]
[1771941402554,13.65149742,76.819,76.782,1.23336731]
[1771941402752,0.63388459,76.818,76.782,1.23336731]
[1771941404363,13.01795175,76.817,76.784,1.23336731]
[1771941404862,13.65221275,76.817,76.784,1.23336731]
[1771941405267,13.01829069,76.815,76.785,13.02337696]
[1771941405470,13.01829069,76.815,76.786,1.23336731]
[1771941406173,0.372,76.826,76.786,1.23336731]
[1771941406492,0.63463427,76.824,76.779,1.23336731]
[1771941407571,0.63481733,76.822,76.781,1.23336731]
[1771941408169,5.02062921,76.82,76.781,1.23336731]
[1771941408373,0.63498371,76.819,76.781,1.23336731]
[1771941410072,0.63516229,76.817,76.783,1.23336731]
[1771941413078,0.6356913,76.815,76.785,1.23336731]
[1771941414179,0.6356913,76.815,76.778,1.23336731]
[1771941414384,0.63604051,76.809,76.746,1.23336731]
[1771941414604,0.63604051,76.809,76.747,1.23336731]
[1771941414875,52.43810201,76.826,76.746,3.69383402]
[1771941414876,0.63604051,76.819,76.752,1.23336731]
[1771941415084,0.63568056,76.808,76.757,1.14921561]
[1771941415265,0.63531256,76.799,76.757,1.14921561]
[1771941418980,45.56757671,76.809,76.759,1.14921561]
[1771941418981,0.63423773,76.797,76.759,1.14921561]
[1771941420765,0.63354643,76.789,76.752,1.14921561]
[1771941420976,0.63354643,76.787,76.752,1.14921561]
[1771941422470,0.63287932,76.785,76.752,1.14921561]
[1771941423180,5.01578964,76.78,76.752,1.14921561]
[1771941423386,0.63253848,76.779,76.752,1.14921561]
[1771941424591,0.632216,76.777,76.753,1.14921561]
[1771941424767,13.02382996,76.783,76.755,1.14921561]
[1771941425168,0.632216,76.782,76.755,1.14921561]
[1771941425982,0.632216,76.782,76.756,13.02829746]
[1771941426282,0.632216,76.782,76.757,1.14921561]
[1771941426683,13.65473126,76.787,76.757,1.14921561]
[1771941426991,0.63157844,76.786,76.757,1.14921561]
[1771941428070,13.02315282,76.787,76.759,1.14921561]
[1771941428472,13.65410925,76.787,76.759,1.14921561]
[1771941428672,0.63095643,76.786,76.759,1.14921561]
[1771941430383,13.02337696,76.785,76.76,13.02761855]
[1771941430706,13.02337696,76.785,76.761,1.14921561]
[1771941431072,5.01578964,76.8,76.761,1.14921561]
[1771941431073,13.02226236,76.792,76.761,1.14921561]
[1771941432375,0.1,76.84,76.764,1.14921561]
[1771941432601,0.62973723,76.809,76.766,1.14921561]
[1771941434705,0.62916162,76.807,76.768,1.14921561]
[1771941434999,0.62916162,76.799,76.768,1.14921561]
[1771941435577,0.62916162,76.799,76.763,1.14921561]
[1771941436506,0.62859108,76.789,76.763,1.14921561]
[1771941436797,0.62859108,76.789,76.765,1.14921561]
[1771941436992,0.62859108,76.779,76.745,1.14921561]
[1771941437788,0.62831022,76.769,76.717,1.14921561]
[1771941437999,0.62831022,76.759,76.717,1.14921561]
[1771941439105,0.62802583,76.757,76.719,1.14921561]
[1771941439405,0.62775688,76.763,76.719,1.14921561]
[1771941439988,46.21491952,76.776,76.721,3.69383402]
[1771941440201,0.62775688,76.775,76.722,1.14921561]
[1771941441008,13.65273168,76.774,76.727,1.14921561]
[1771941441305,13.65246899,76.774,76.727,1.14921561]
[1771941441506,0.62722607,76.773,76.727,1.14921561]
[1771941442506,0.62696573,76.771,76.729,1.14921561]
[1771941444392,0.62696573,76.771,76.728,45.61568135]
[1771941444393,13.65210321,76.77,76.73,45.61449236]
[1771941444613,0.62618163,76.769,76.731,1.19480677]
[1771941447499,0.6252151,76.779,76.735,3.69383402]
[1771941447808,0.6252151,76.779,76.736,1.25974662]
[1771941448501,13.64966552,76.779,76.738,1.25974662]
[1771941450312,0.62473854,76.778,76.738,1.25974662]
[1771941451216,13.02473396,76.777,76.74,1.25974662]
[1771941453194,0.62404532,76.776,76.742,1.25974662]
[1771941454699,0.62360949,76.782,76.742,1.25974662]
[1771941455407,0.62360949,76.782,76.741,45.60795401]
[1771941455408,0.62360949,76.78,76.744,1.25974662]
[1771941455796,0.62338976,76.779,76.744,1.25974662]
[1771941459012,0.62274636,76.777,76.746,1.25974662]
[1771941461924,0.62274636,76.777,76.748,1.25974662]
[1771941462104,13.02456432,76.778,76.748,1.25974662]
[1771941462818,13.64643941,76.778,76.748,1.25974662]
[1771941463305,0.62167245,76.777,76.75,1.25974662]
[1771941467403,0.62088676,76.78,76.752,1.25974662]
[1771941467725,0.62088676,76.78,76.758,1.25974662]
[1771941468521,0.62069513,76.787,76.76,1.25974662]
[1771941471528,0.62012462,76.788,76.762,1.25974662]
[1771941473928,13.02303775,76.787,76.763,13.02710941]
[1771941474235,0.61975285,76.786,76.764,1.25974662]
[1771941475518,0.61754797,76.793,76.764,1.25974662]
[1771941476833,0.61754797,76.793,76.765,13.02677001]
[1771941477036,0.61754797,76.793,76.766,1.22090113]
[1771941478336,0.61453689,76.789,76.76,1.22090113]
[1771941478634,0.61453689,76.789,76.756,1.22090113]
[1771941479433,0.61354946,76.787,76.757,13.02812772]
[1771941480121,0.61354946,76.787,76.757,14.24902885]
[1771941480516,0.61258461,76.779,76.739,1.22090113]
[1771941481734,0.61163266,76.777,76.741,1.22090113]
[1771941483425,0.1,76.83,76.742,1.22090113]
[1771941483631,0.1,76.83,76.745,45.6055769]
[1771941483632,0.60977919,76.818,76.745,45.6055769]
[1771941483833,0.60977919,76.799,76.749,1.22090113]
[1771941484019,0.60977919,76.789,76.749,1.22090113]
[1771941486024,0.60793931,76.787,76.751,1.22090113]
[1771941489334,0.60525943,76.785,76.753,1.22090113]
[1771941490945,0.6035421,76.785,76.753,1.22090113]
[1771941491146,0.6035421,76.785,76.755,1.22090113]
[1771941491643,0.60270387,76.783,76.755,1.22090113]
[1771941495037,0.60270387,76.783,76.756,13.02829746]
[1771941495245,0.60270387,76.783,76.757,1.22090113]
[1771941498236,13.0238858,76.782,76.758,13.02795799]
[1771941498433,13.62093782,76.782,76.759,1.22090113]
[1771941500932,0.59705202,76.782,76.761,1.22090113]
[1771941501338,0.59705202,76.782,76.729,3.69383402]
[1771941501339,5.01892647,76.77,76.711,13.03594008]
[1771941501558,5.01892647,76.77,76.711,45.62579029]
[1771941501756,5.01892647,76.77,76.714,3.69383402]
[1771941502355,1.19800466,76.779,76.714,3.69383402]
[1771941503364,1.19800466,76.777,76.717,1.22090113]
[1771941504446,1.18424576,76.769,76.717,1.22090113]
[1771941505573,1.24494738,76.767,76.719,1.22457072]
[1771941506754,1.24494738,76.767,76.711,3.69383402]
[1771941506755,1.24494738,76.765,76.722,1.22457072]
[1771941508765,1.24494738,76.765,76.708,52.14566073]
[1771941508766,1.24494738,76.763,76.715,1.22457072]
[1771941509073,1.24494738,76.739,76.715,1.22457072]
[1771941509365,1.24494738,76.739,76.689,3.69383402]
[1771941509751,1.24494738,76.739,76.686,6.80265799]
[1771941509968,1.24494738,76.729,76.682,45.64304529]
[1771941510156,1.24494738,76.729,76.685,3.69383402]
[1771941510556,1.24494738,76.727,76.686,45.64066452]
[1771941511356,1.24494738,76.727,76.687,1.22457072]
[1771941512670,1.24494738,76.727,76.689,1.22457072]
[1771941512972,1.24494738,76.725,76.689,1.22457072]
[1771941515554,13.03339154,76.726,76.691,1.22457072]
[1771941515555,5.01892647,76.72,76.691,1.22457072]
[1771941515756,1.24494738,76.719,76.69,13.03950971]
[1771941516160,1.24494738,76.719,76.691,1.22457072]
[1771941517967,1.24494738,76.719,76.692,13.03916966]
[1771941518157,1.24494738,76.719,76.693,1.22457072]
[1771941519964,13.03644991,76.708,76.667,32.60836222]
[1771941520162,1.24494738,76.707,76.678,1.22457072]
[1771941520373,1.24494738,76.699,76.671,13.04274106]
[1771941520675,1.24494738,76.689,76.67,0.2]
[1771941521965,1.24494738,76.699,76.671,1.22457072]
[1771941522161,13.03814962,76.698,76.673,1.22457072]
[1771941522365,1.24494738,76.697,76.673,1.22457072]
[1771941523175,13.03734114,76.703,76.673,1.22457072]
[1771941523377,1.24494738,76.702,76.673,1.22457072]
[1771941527378,1.24494738,76.7,76.675,1.22457072]
[1771941530879,1.24494738,76.7,76.677,1.22457072]
[1771941532687,1.24494738,76.698,76.677,1.22457072]
[1771941533273,1.24494738,76.696,76.672,1.22457072]
[1771941533686,1.24494738,76.696,76.67,0.2]
[1771941534482,1.24494738,76.689,76.67,0.2]
[1771941535474,1.22461563,76.687,76.67,0.2]
[1771941535894,1.22461563,76.687,76.671,13.04274106]
[1771941536097,1.22461563,76.687,76.672,1.19661301]
[1771941536395,13.03865499,76.696,76.672,1.19661301]
[1771941537200,1.22461563,76.698,76.672,1.19661301]
[1771941537898,14.26287223,76.698,76.673,13.04240084]
[1771941538087,1.22461563,76.698,76.674,1.19661301]
[1771941538791,1.22461563,76.703,76.674,1.19661301]
[1771941540385,1.22461563,76.703,76.676,1.19661301]
[1771941540592,1.22461563,76.702,76.676,1.19661301]
[1771941542401,1.22461563,76.702,76.675,13.04206064]